Cogmind - Beta 14 @@@ ROGUE MODE // 2024.08.26 @ 18:23:43 Player: AppleSource Result: Destroyed by PW-FID(R) with Subdweller Shrapnel Launcher Performance ------------- Evolutions (0) 0 Regions Visited (3) 600 Robots Destroyed (28) 140 Value Destroyed (678) 678 Prototype IDs (11) 220 Alien Tech Used (0) 0 Bonus (64) 64 TOTAL SCORE: 1702 Bonus ------- High Alert Combat Kills 8 Follower Combat Kills 95 Friendly Fire -39 Cogmind --------- Core Integrity 0/250 Matter 275/300 Energy 125/125 System Corruption 0% Temperature Cool (0) Movement Treading (240) Ox1 Location -10/Subcaves Parts ------- > --- POWER (1+1) ------ Light Ion Engine > --- PROPULSION (2+1) - Light Treads Light Treads > --- UTILITY (2+1) ---- High-capacity Storage Unit Rainbow Chip > --- WEAPON (2+1) ----- Mini Grenade Launcher > --- INVENTORY (20) --- Ion Engine Improved Heat Sink Large Matter Pod (150) Mini Grenade Launcher Mini Grenade Launcher Peak State ------------ > --- POWER ------------ Light Ion Engine > --- PROPULSION ------- Light Treads Light Treads > --- UTILITY ---------- High-capacity Storage Unit Rainbow Chip > --- WEAPON ----------- Mini Grenade Launcher Mini Grenade Launcher > --- INVENTORY -------- Ion Engine Improved Heat Sink Large Matter Pod Mini Grenade Launcher Mini Grenade Launcher [Rating: 21] Favorites ----------- Power Ion Engine Engine Ion Engine Propulsion Light Treads Treads Light Treads Utility High-capacity Storage Unit Device Improved Heat Sink Storage High-capacity Storage Unit Processor Rainbow Chip Weapon Mini Grenade Launcher Energy Gun Small Laser Launcher Mini Grenade Launcher Build | -11 -10 -10 -10 ------- Run | Yrd Mat Min Sub Slots Evolved . | . . . . Power . | . . . . Propulsion . | . . . . Utility . | . . . . Weapon . | . . . . Parts Attached 17 | 6 7 3 1 Power 2 | 1 . 1 . Engine 2 | 1 . 1 . Core . | . . . . Reactor . | . . . . Propulsion 5 | 2 2 1 . Treads 5 | 2 2 1 . Leg . | . . . . Wheel . | . . . . Hover . | . . . . Flight . | . . . . Utility 5 | 1 2 1 1 Device 1 | . . 1 . Storage 3 | 1 2 . . Processor 1 | . . . 1 Hackware . | . . . . Protection . | . . . . Artifact . | . . . . Weapon 5 | 2 3 . . Energy Gun 2 | 2 . . . Energy Cannon . | . . . . Ballistic Gun . | . . . . Ballistic Cannon . | . . . . Launcher 3 | . 3 . . Special Weapon . | . . . . Impact Weapon . | . . . . Slashing Weapon . | . . . . Piercing Weapon . | . . . . Special Melee Weapon . | . . . . Unidentified Prototypes . | . . . . Parts Lost 4 | . 2 1 1 Power . | . . . . Propulsion 1 | . . 1 . Utility . | . . . . Weapon 3 | . 2 . 1 Highest Loss Streak 1 | . 1 1 1 To Critical Strikes . | . . . . Average Slot Usage (%) 81 | . 84 85 76 Engine 13 | . 14 14 12 Treads 26 | . 27 27 24 Storage 13 | . 14 14 12 Processor 1 | . . . 3 Energy Gun 7 | . 17 . . Launcher 19 | . 10 28 24 Peak Build Rating 21 | 6 8 11 21 Average Rating 8 | 4 6 8 13 On Entrance 5 | . 6 8 8 Naked Turns . | . . . . Heaviest Build 48 | 13 48 48 45 Greatest Support 40 | 40 40 40 40 Greatest Overweight (x) 15 | . 15 2 1 Average Overweight (x) . | . . 1 1 Largest Inventory Capacity 20 | 8 20 20 20 Average Capacity 18 | 7 17 20 20 Most Carried 5 | . 5 5 5 Average Carried 3 | . 3 4 5 Final Capacity 20 | 8 20 20 20 Final Carried 5 | . 4 5 5 Class Distribution -------------------- 100% | Mutant Dominant Class ---------------- Mutant | -10/Materials Mutant | -10/Mines Mutant | -10/Subcaves Resources | -11 -10 -10 -10 ----------- Run | Yrd Mat Min Sub Matter Collected 729 | 247 148 304 30 Remotely . | . . . . Salvage Created 584 | . 556 28 . Parts 44 | . 43 1 . Haulers Intercepted 1 | . 1 . . Recyclers Shooed . | . . . . Parts Field Recycled . | . . . . Retrieved Matter . | . . . . Parts Self-Destructed 11 | . . . 11 Prevented . | . . . . Kills | -11 -10 -10 -10 ------- Run | Yrd Mat Min Sub Combat Hostiles Destroyed 18 | . 17 1 . Guns 6 | . 6 . . AOE 12 | . 11 1 . Classes Destroyed 7 | . 7 . . Builder 4 | . 4 . . Hauler 1 | . 1 . . Recycler 1 | . 1 . . Operator 1 | . 1 . . Watcher 3 | . 3 . . Swarmer 3 | . 3 . . Grunt 15 | . 14 1 . Best Kill Streak 8 | . 8 1 . Combat Bots Only 6 | . 6 1 . Max Kills in Single Turn 6 | . 6 1 . Gunslinging . | . . . . Exploded 3 | . 3 1 . Melee . | . . . . Uniques/NPCs Destroyed . | . . . . Combat | -11 -10 -10 -10 -------- Run | Yrd Mat Min Sub Hostile Shots Fired 59 | . 47 7 5 Missed 20 | . 17 1 2 Damage Taken 767 | . 451 115 201 Core 251 | . 73 49 129 Absorbed by Shields . | . . . . Core Remaining (%) 100 | 100 . . . Volleys Fired 40 | . 36 1 3 Largest 2 | . 2 2 2 Hottest 80 | . 80 60 60 Shots Fired 76 | . 69 2 5 Gun 50 | . 50 . . Cannon . | . . . . Launcher 26 | . 19 2 5 Special . | . . . . Kinetic . | . . . . Thermal 31 | . 31 . . Explosive 26 | . 19 2 5 Electromagnetic 19 | . 19 . . Robot Hit Streak 7 | . 7 1 4 Robot Miss Streak 5 | . 5 1 . Penetration Max . | . . . . Secondary Targets . | . . . . Shots Hit Robots 40 | . 36 1 3 Core Hits 41 | . 38 2 1 Critical Kills . | . . . . Critical Parts Destroyed . | . . . . Critical Strikes 1 | . 1 . . Corrupt 1 | . 1 . . Melee Attacks . | . . . . Impact . | . . . . Slashing . | . . . . Piercing . | . . . . Sneak Attacks . | . . . . Combat Hostiles . | . . . . Follow-up Attacks . | . . . . Damage Inflicted 2020 | . 1663 127 230 Guns 289 | . 289 . . Cannons . | . . . . Explosions 1728 | . 1374 124 230 Melee . | . . . . Ramming 3 | . . 3 . Kinetic . | . . . . Thermal 179 | . 179 . . Explosive 1728 | . 1374 124 230 Electromagnetic 110 | . 110 . . Impact . | . . . . Slashing . | . . . . Piercing . | . . . . Highest Corruption . | . . . . Average Corruption . | . . . . Corruption Purged . | . . . . Corruption Blocked . | . . . . Overload Shots . | . . . . Overflow Damage 59 | . 38 7 14 Projectiles . | . . . . Explosions 59 | . 38 7 14 Melee . | . . . . Knockbacks . | . . . . Impact . | . . . . Kinetic . | . . . . Secondary . | . . . . Self-Inflicted Damage 232 | . 112 32 88 Shots 11 | . 7 1 3 Rammed 2 | . 1 1 . Targets Rammed 2 | . 1 1 . Kicked . | . . . . Crushed . | . . . . Highest Temperature 133 | . 133 12 . Average Temperature 54 | . 55 6 . Received Heat Transfer 222 | . 165 48 9 Siege Activations . | . . . . Robots Corrupted . | . . . . Combat Hostiles . | . . . . Parts Fried . | . . . . Impact Corruptions . | . . . . Robots Melted . | . . . . Combat Hostiles . | . . . . Parts Melted . | . . . . Heat Transferred 400 | . 400 . . Parts Sabotaged . | . . . . Parts Stolen . | . . . . Parts Stripped . | . . . . Power Chain Reactions . | . . . . Alert | -11 -10 -10 -10 ------- Run | Yrd Mat Min Sub Peak Influence 419 | . 419 158 . Initial 127 | . . 127 . Average 108 | . 121 100 . Maximum Alert Level 2 | . 2 . . Low Security (%) 80 | 100 66 100 . Level 1 19 | . 32 . . Level 2 . | . . . . Level 3 . | . . . . Level 4 . | . . . . Level 5 . | . . . . High Security . | . . . . Max Security . | . . . . Squads Dispatched 4 | . 4 . . Investigation 2 | . 2 . . Extermination . | . . . . Reinforcement 2 | . 2 . . Assault . | . . . . Garrison . | . . . . Intercept . | . . . . Searches Triggered . | . . . . Construction Impeded . | . . . . Haulers Reinforced . | . . . . Active Scanning Responses . | . . . . Cargo Convoy Interrupts . | . . . . Stealth | -11 -10 -10 -10 --------- Run | Yrd Mat Min Sub Distress Signals 1 | . 1 . . Communications Jammed . | . . . . Distress Signals . | . . . . Times Spotted 30 | . 24 3 3 Peak Tracking Total 4 | . 4 2 1 Tactical Retreats 1 | . 1 . . Traps | -11 -10 -10 -10 ------- Run | Yrd Mat Min Sub Traps Triggered 3 | . 3 . . Indirectly . | . . . . Trap Hack Attempts . | . . . . Triggered . | . . . . Disarmed . | . . . . Reprogrammed . | . . . . Reused . | . . . . Traps Extracted . | . . . . Installed . | . . . . Triggered 1 | . . . 1 Machines | -11 -10 -10 -10 ---------- Run | Yrd Mat Min Sub Machines Disabled 4 | . 2 . 2 Max in Single Turn 2 | . 1 . 2 Machines Repaired . | . . . . Machines Dismantled . | . . . . Machines Sabotaged . | . . . . Overloaded Fab Kills . | . . . . Hacking | -11 -10 -10 -10 --------- Run | Yrd Mat Min Sub Machines Accessed 2 | . . . 2 Terminals . | . . . . Fabricators . | . . . . Repair Stations . | . . . . Recycling Units . | . . . . Scanalyzers . | . . . . Garrison Access . | . . . . Total Hacks 14 | . . . 14 Successful 14 | . . . 14 Failed . | . . . . Catastrophic . | . . . . Database Lockouts . | . . . . Manual . | . . . . Terminals . | . . . . Fabricators . | . . . . Repair Stations . | . . . . Recycling Units . | . . . . Scanalyzers . | . . . . Garrison Access . | . . . . Terminal Hacks 14 | . . . 14 Record 13 | . . . 13 Derelict Proto ID Bank 1 | . . . 1 Fabricator Hacks . | . . . . Repair Station Hacks . | . . . . Recycling Unit Hacks . | . . . . Scanalyzer . | . . . . Garrison Access Hacks . | . . . . Unauthorized Hacks . | . . . . Terminals . | . . . . Fabricators . | . . . . Repair Stations . | . . . . Recycling Units . | . . . . Scanalyzers . | . . . . Garrison Access . | . . . . Data Cores Recovered . | . . . . Used . | . . . . Hacking Detections . | . . . . Full Trace Events . | . . . . Feedback Events . | . . . . Feedback Blocked . | . . . . Robot Schematics Acquired . | . . . . Robots Built . | . . . . Authchips . | . . . . Time . | . . . . Total Robot Build Rating . | . . . . Part Schematics Acquired . | . . . . Parts Built . | . . . . Authchips . | . . . . Time . | . . . . Total Part Build Rating . | . . . . Parts Repaired . | . . . . Time . | . . . . Parts Recycled . | . . . . Recycled Matter . | . . . . Retrieved Matter . | . . . . Retrieved Components . | . . . . Parts Scanalyzed . | . . . . Part Schematics Acquired . | . . . . Parts Damaged . | . . . . Bothacking | -11 -10 -10 -10 ------------ Run | Yrd Mat Min Sub Used RIF Installer . | . . . . Robots Hacked . | . . . . Non-combat . | . . . . Combat . | . . . . Robot Hacks Applied . | . . . . Relay Couplers Released . | . . . . Fabnet Peak Effective % . | . . . . Robots Rewired . | . . . . Allies Hacked . | . . . . Hacks Repelled . | . . . . Allies | -11 -10 -10 -10 -------- Run | Yrd Mat Min Sub Total Allies 1 | . . 1 . Largest Group 1 | . . 1 1 Highest-Rated Group 31 | . . 31 31 Highest-Rated Ally 31 | . . 31 31 Total Orders . | . . . . Ally Attacks 20 | . . . 20 Total Damage 215 | . . . 215 Kills 3 | . . . 3 Allies Corrupted . | . . . . Allies Melted . | . . . . Intel | -11 -10 -10 -10 ------- Run | Yrd Mat Min Sub Robot Analysis Total . | . . . . Derelict Logs Recovered 3 | . . 2 1 Drone Launches . | . . . . Drone Recoveries . | . . . . Exploration | -11 -10 -10 -10 ------------- Run | Yrd Mat Min Sub Turns Passed 2406 | 75 1001 625 705 Spaces Moved 991 | 44 444 222 281 Core 4 | 3 1 . . Treads 987 | 41 443 222 281 Legs . | . . . . Wheels . | . . . . Hover . | . . . . Flight . | . . . . Fastest Speed 50 | 50 160 240 240 Average Speed 216 | 152 195 240 240 Slowest Speed 800 | 160 800 320 240 Overloaded Moves . | . . . . Propulsion Burnouts . | . . . . Robots Hopped . | . . . . Cave-ins Triggered . | . . . . Exploration Rate (%) 38 | 3 82 49 19 Regions Visited 3 Branch Regions 2 Pre-discovered Areas 2 | . . 1 1 Known Exits Taken . | . . . . Unknown Exits Taken 3 | 1 1 1 . Scrap Searched 2 | . . . 2 Spaces Dug . | . . . . Terrain Destroyed 162 | . 109 23 30 Melee . | . . . . Projectile . | . . . . AOE 162 | . 109 23 30 Terrain Rammed . | . . . . Walls Destroyed . | . . . . Machines Disabled . | . . . . Actions | -11 -10 -10 -10 --------- Run | Yrd Mat Min Sub Total 1172 | 49 508 310 305 Wait 112 | . 9 83 20 Move 988 | 43 443 221 281 Hop . | . . . . Pick Up 7 | . 7 . . Fast Attach 14 | 6 6 1 1 Attach 2 | . 1 1 . Detach 2 | . 1 1 . Swap 1 | . . 1 . Drop 4 | . 4 . . Fire 40 | . 36 1 3 Melee . | . . . . Ram . | . . . . Kick . | . . . . Crush 2 | . 1 1 . Escape Stasis . | . . . . Rewire . | . . . . Trap . | . . . . Miscellaneous . | . . . . Route ------- -11/Scrapyard -10/Materials (discovered 4 exits: *Mat x3 / [*Min]) -10/Mines (discovered 2 exits: *Mat / *Sub) -10/Subcaves (discovered 2 exits: Mat / Rec) History --------- Turn | Location | Event 28 | -11/Scrapyard | Discovered new exit (range 16) 76 | -11/Scrapyard | Entered Materials 296 | -10/Materials | Discovered new exit (range 9) 311 | -10/Materials | Build established: Mutant 613 | -10/Materials | Discovered new exit (range 3) 833 | -10/Materials | Discovered new exit (range 10) 880 | -10/Materials | Discovered new exit (range 13) 1077 | -10/Materials | Entered Mines 1090 | -10/Mines | Escorted by a lone wolf Derelict 1110 | -10/Mines | Learned location of Storage (-8) 1143 | -10/Mines | Assembled infested the area 1148 | -10/Mines | Assisted by a Guerilla fighting off Assembled 1176 | -10/Mines | Learned Materials trap positions 1186 | -10/Mines | Identified exit to Materials 1697 | -10/Mines | Discovered new exit (range 3) 1702 | -10/Mines | Entered Subcaves 1702 | -10/Subcaves | Accompanied by 1 ally 1784 | -10/Subcaves | Visited Clippyterm 1791 | -10/Subcaves | Identified exit to Recycling 1791 | -10/Subcaves | Learned Factory trap positions 1868 | -10/Subcaves | Learned location of Zion (-7) 1868 | -10/Subcaves | Met a Zionite searching for "candidates" 2056 | -10/Subcaves | Visited 4L-MR0's lab 2125 | -10/Subcaves | Found Rainbow Chip 2127 | -10/Subcaves | Attached Rainbow Chip, gained temporary slots: Power, Propulsion, Utility, Weapon 2189 | -10/Subcaves | Core integrity fell below 50% 2288 | -10/Subcaves | A swath of the cavern ceiling suddenly collapsed 2313 | -10/Subcaves | Identified exit to Materials 2399 | -10/Subcaves | Ambushed by Subdweller buried in earth 2407 | -10/Subcaves | Destroyed by PW-FID(R) with Subdweller Shrapnel Launcher Last Messages --------------- Core temporarily expanded with Weapon slot. Acquired 30 matter. Subatomizers dissect the Sub. Optics. G-47 Trooper destroyed. Lgt. Nuclear Core fries itself beyond repair. Particle Gun fries itself beyond repair. Aluminum Leg fries itself beyond repair. F6-AND(g) crushed by falling debris. A swath of the cavern ceiling suddenly collapses. Acquired derelict log, extracted data. Loading 1 Subcaves exit... UG-KBN(R) suffers critical hit (Burn). Destroyed Carbon-fiber Leg. UG-KBN(R) destroyed. PW-FID(R): "ARGHSUB!" Subatomizers dissect the Sub. Monowheel. PW-FID(R) affixes Scrap Shield Fragment to Scrap Shield. Mni. Grenade Launcher destroyed. Destroyed Mni. Grenade Launcher. PW-FID(R) affixes Scrap Shield Fragment to Scrap Shield. Map ----- +----------------------------------------------------+ | ???????????????????## #??????????? | | ???????????????????# ##??????????? | | ???????????????????## # #???????????? | | ????????????????????#### #???????????? | | ?????????????????????# "" ##???????????? | | ???????????????# #""""##" #????????????? | | ???????????????# #"#" ##????????????? | | ???????????????# ###"# #????????????? | | ???????????????## ?#"""# ##????????????? | | ????????????????#??#"""# ##????????????? | | ???????????????????##""# #????????????? | | ???????????????????# " ##????????????? | | ???????????????????## #?????????????? | | ?????????????????#### ####??????????? | | ?????????????????# ##?????????? | | ?????????????????## ## #?????????? | | ??????????????????# #### #?????????? | | ??????????????????# #??#### #?????????? | | ??????????????????# ##?##??# #????????? | | ??????????????????## ## ###? #????????? | | ?????????????????### ##?##????????? | | ????????????????## ##??????????? | | ????????????????# #??????????? | | ???????????????###; ### #?????????? | | ???????????????# ;;;#?? ??????? | | ???????????????#@ #??? ????? | | ??????????????# ;#???? ?????? | | ?????????????# R ; # #?? ?????? | | ?????????????### % " ?? ??????? | | ???????????????# = " ?#???????? | | ??????????????? ""### ????????????? | | ??????????????? ""#???????????????? | | ???????????????## # "##???????????????? | | ?????????????????####" #????????????????? | | ????????????????????? #????????????????? | | ????????????????????? ????????????????? | | ?????????????????????? "#???????????????? | | ???????????????????????#????????????????? | | ????????????????????????????????????????? | | ????????????????????????????????????????? | | ????????????????????????????????????????? | | ????????????????????????????????????????? | | ????????????????????????????????????????? | | ????????????????????????????????????????? | | ????????????????????????????????????????? | | ????????????????????????????????????????? | | ????????????????????????????????????????? | | ????????????????????????????????????????? | | ????????????????????????????????????????? | | ????????????????????????????????????????? | +----------------------------------------------------+ Best States ------------- Heat Dissipation 39 Energy Generation 10 Energy Capacity 250 Matter Stores 300 Matter Capacity 300 Sight Range 16 Terrain Scan Density 10 Evasion (%) 40 Recoil Reduction 2 Item Schematics ----------------- None Robot Schematics ------------------ None Fabricated ------------ Nothing Alien Tech Used ----------------- None Achievements -------------- None Challenges ------------ None Game ------ Seed UtilitySegregatorSuit Manual? 0 Play Time 00:16:13 Cumulative 18.8 hours Start 2024.08.26 @ 18:11:11 End 2024.08.26 @ 18:23:43 Sessions 1 Manual Loads 0 Difficulty Rogue Special Mode None Game No. 24 Rogue 12 Adventurer 12 Explorer 0 Win Type - Total 0 Types 0/0/0/0/0/0/0/0/0 Lore% 8 Gallery% 16 Achievement% 16 Wizard Run 0 Options --------- Layout 0 ASCII 0 Keyboard 1 Movement Numpad Keybinds 0 Fullscreen 2 Font 24/Smallcaps Map View 113x50 Zoom Use 0% Tactical HUD 0 Map Filters NONE Filters NONE Steam 1 RUN: e4a9e52f-08b3-4c86-b094-85507c5b0848